bitfinex-derivatives/quotes_BTCF0:USTF0_20240917
["timestamp","ask_amount","ask_price","bid_price","bid_amount"]
[1726605526924,0.3608,60126.0,60117.0,0.34629471]
[1726605527231,0.3608,60126.0,60113.0,0.00249514]
[1726605527232,0.3608,60120.0,60114.0,1.5]
[1726605527435,0.3608,60126.0,60116.0,0.3608]
[1726605527726,0.3838,60120.0,60113.0,0.00249514]
[1726605527918,0.023,60120.0,60116.0,0.3608]
[1726605528323,0.3838,60120.0,60113.0,0.00249514]
[1726605528528,0.0024957,60125.0,60114.0,0.49904]
[1726605528840,0.3608,60142.0,60124.0,0.3608]
[1726605529023,0.3608,60142.0,60118.0,0.3608]
[1726605529024,0.3608,60140.0,60129.0,0.3608]
[1726605529326,0.25088191,60152.0,60139.0,0.3608]
[1726605529526,0.3608,60160.0,60134.0,0.3608]
[1726605529720,0.3608,60155.0,60133.0,0.083127]
[1726605529920,0.3608,60155.0,60134.0,0.3608]
[1726605530120,0.6508,60149.0,60134.0,0.3608]
[1726605530327,0.6738,60149.0,60134.0,0.3608]
[1726605530522,0.3608,60149.0,60134.0,0.3608]
[1726605531528,0.313,60148.0,60134.0,0.3608]
[1726605531831,0.29,60148.0,60134.0,0.3608]
[1726605532031,0.023,60135.0,60125.0,0.00249437]
[1726605532337,0.023,60126.0,60125.0,0.00249437]
[1726605532639,0.3838,60126.0,60125.0,0.00249437]
[1726605533027,0.3838,60126.0,60110.0,0.3608]
[1726605533228,0.023,60114.0,60110.0,0.3608]
[1726605533429,0.023,60114.0,60102.0,1.86164]
[1726605533729,0.00249532,60125.0,60116.0,0.08315]
[1726605533934,0.00249532,60125.0,60113.0,0.00337514]
[1726605534134,0.00249532,60125.0,60113.0,0.00249514]
[1726605534532,0.00249532,60125.0,60118.0,0.3608]
[1726605534934,0.00249532,60125.0,60119.0,0.3608]
[1726605535349,0.00249532,60125.0,60114.0,1.50092]
[1726605535649,0.00249532,60125.0,60117.0,0.3608]
[1726605536044,0.3593,60138.0,60117.0,0.3608]
[1726605536045,0.3593,60138.0,60118.0,0.499]
[1726605536244,0.023,60130.0,60117.0,0.36164]
[1726605536450,0.023,60127.0,60117.0,0.3608]
[1726605536752,0.3608,60120.0,60114.0,1.50084]
[1726605536939,0.3608,60120.0,60114.0,1.5]
[1726605537143,0.023,60116.0,60114.0,1.5]
[1726605537446,0.023,60115.0,60114.0,1.5]
[1726605537946,0.023,60115.0,60113.0,0.00249514]
[1726605538145,0.023,60115.0,59453.0,0.16618531]
[1726605538146,0.44,60114.0,60080.0,0.083192]
[1726605538347,0.44,60114.0,60078.0,0.3608]
[1726605538348,0.3608,60102.0,60084.0,0.3608]
[1726605538537,0.3608,60091.0,60087.0,0.083182]
[1726605538737,0.3608,60112.0,60090.0,0.3608]
[1726605538935,0.3608,60112.0,60100.0,0.083164]
[1726605539146,0.3608,60112.0,60100.0,0.582284]
[1726605539350,0.3608,60112.0,60101.0,1.5]
[1726605540339,0.3608,60106.0,60101.0,1.5]
[1726605540651,0.00249553,60124.0,60109.0,0.083153]
[1726605540652,0.3608,60120.0,60109.0,0.083153]
[1726605541037,0.3608,60120.0,60103.0,0.3608]
[1726605541242,0.3608,60120.0,60110.0,0.08315]
[1726605541651,0.00249553,60124.0,60115.0,0.083144]
[1726605541837,0.3608,60120.0,60106.0,0.00249521]
[1726605542038,0.3608,60113.0,60111.0,0.083149]
[1726605542445,0.3608,60120.0,60116.0,0.083142]
[1726605542642,0.24920337,60112.0,60083.0,0.08568384]
[1726605542843,0.3608,60099.0,60083.0,0.36329584]
[1726605543039,0.3608,60099.0,60084.0,1.5]
[1726605543344,0.3608,60099.0,60098.0,0.083168]
[1726605543850,0.3608,60099.0,60094.0,0.00249545]
[1726605544037,0.3608,60099.0,60095.0,1.5]
[1726605544547,0.3608,60099.0,60094.0,0.00249545]
[1726605545254,0.44,60095.0,60094.0,0.00249545]
[1726605545647,0.69057217,60095.0,60094.0,0.00249545]
[1726605546553,0.25057217,60095.0,60094.0,0.00249545]
[1726605546742,0.3608,60099.0,60094.0,1.50249545]
[1726605546943,0.44,60096.0,60094.0,1.50249545]
[1726605547147,0.44,60096.0,60094.0,0.00249545]
[1726605548659,0.3608,60110.0,60109.0,0.083153]
[1726605548958,0.3608,60117.0,60116.0,0.083143]
[1726605549259,0.3608,60117.0,60116.0,1.583143]
[1726605549461,0.3608,60117.0,60116.0,2.682183]
[1726605550456,0.44,60122.0,60121.0,0.083136]
[1726605550758,0.44,60122.0,60104.0,0.083158]
[1726605550759,0.083151,60110.0,60096.0,0.08317]
[1726605550947,0.3608,60098.0,60094.0,0.0024961]
[1726605551148,0.3608,60095.0,60094.0,0.0024961]
[1726605552761,0.3608,60103.0,60101.0,0.083163]
[1726605553057,0.2494,60103.0,60101.0,0.083163]
[1726605553268,0.2494,60103.0,60102.0,1.5]
[1726605553448,0.31625831,60103.0,60102.0,1.5]
[1726605553862,0.31625831,60103.0,60102.0,1.99916]
[1726605554155,0.06685831,60103.0,60102.0,1.5]
[1726605554357,0.06685831,60103.0,60102.0,1.99916]
[1726605554563,0.06685831,60103.0,60102.0,1.5]
[1726605554749,0.06685831,60103.0,60102.0,0.582322]
[1726605554948,0.06685831,60103.0,60102.0,0.083162]
[1726605555857,0.23138304,60103.0,60096.0,0.17771814]
[1726605556160,0.3608,60105.0,60096.0,0.17771814]
[1726605556161,0.23138304,60102.0,60096.0,0.17771814]
[1726605556454,0.23138304,60101.0,60100.0,0.083165]
[1726605556861,0.23138304,60101.0,60100.0,1.583165]
[1726605557358,0.73700961,60101.0,60094.0,0.0024961]
[1726605557561,0.3608,60095.0,60094.0,0.0024961]
[1726605557759,0.65780961,60095.0,60094.0,0.0024961]
[1726605558147,1.09780961,60095.0,60094.0,0.0024961]
[1726605558458,1.28458485,60095.0,60094.0,0.0024961]
[1726605558662,1.28458485,60095.0,60083.0,1.50249584]
[1726605558663,0.083174,60094.0,60083.0,1.50249584]
[1726605558847,0.44,60084.0,60083.0,1.50249584]
[1726605559158,0.67138304,60084.0,60083.0,0.08568484]
[1726605559864,0.77498628,60084.0,60083.0,1.58568484]
[1726605560352,0.75498909,60084.0,60083.0,1.58568484]
[1726605560948,0.82061566,60084.0,60083.0,1.50249584]
[1726605561159,1.18141566,60084.0,60083.0,0.00249584]
[1726605561359,1.26460266,60084.0,60083.0,0.00249584]
[1726605562060,0.38061566,60084.0,60083.0,0.00249584]
[1726605562254,0.31498909,60084.0,60083.0,0.08568484]
[1726605562451,0.083165,60101.0,60083.0,0.08568484]
[1726605562452,0.21530011,60094.0,60083.0,1.10181584]
[1726605562749,0.3608,60103.0,60102.0,0.083162]
[1726605562953,0.3608,60103.0,60098.0,0.083167]
[1726605563151,0.3608,60103.0,60093.0,0.3608]
[1726605563351,0.3608,60103.0,60087.0,0.083183]
[1726605563352,0.3608,60103.0,60098.0,0.00249549]
[1726605563551,0.3608,60103.0,60099.0,1.5]
[1726605563552,0.443961,60103.0,60099.0,1.5]
[1726605563959,0.44,60101.0,60099.0,1.5]
[1726605564458,0.44,60101.0,60098.0,0.08566249]
[1726605564459,0.083165,60100.0,60098.0,0.00249549]
[1726605564852,0.39701899,60099.0,60098.0,0.00249549]
[1726605565260,0.39701899,60099.0,60074.0,0.00940449]
[1726605565261,1.34742642,60099.0,60074.0,0.00249583]
[1726605565465,0.50313073,60081.0,60079.0,0.083194]
[1726605565763,0.42393073,60080.0,60075.0,1.5832]
[1726605566061,0.42393073,60080.0,60074.0,0.00249583]
[1726605566062,0.14633073,60075.0,60074.0,0.00249583]
[1726605566257,0.58633073,60075.0,60074.0,0.00249583]
[1726605569254,0.50313073,60075.0,60074.0,0.00249583]
[1726605569450,0.14852972,60094.0,60074.0,0.00249583]
[1726605569451,0.3608,60089.0,60086.0,0.083183]
[1726605569778,0.3608,60089.0,60088.0,0.083182]
[1726605570156,0.3608,60089.0,60084.0,0.00249643]
[1726605570661,0.3608,60089.0,60087.0,0.083183]
[1726605570861,0.06445393,60088.0,60087.0,0.083183]
[1726605572359,0.11996887,60088.0,60087.0,0.083183]
[1726605573455,0.11996887,60088.0,60087.0,1.583183]
[1726605573861,0.11996661,60088.0,60087.0,1.583183]
[1726605577184,0.11996661,60088.0,60087.0,1.49994303]
[1726605578169,0.11996661,60088.0,60087.0,1.58312603]
[1726605578660,0.11864562,60088.0,60087.0,2.18312603]
[1726605578860,0.3608,60089.0,60087.0,2.18312603]
[1726605578861,0.3608,60089.0,60088.0,0.083182]
[1726605579063,0.41568372,60089.0,60088.0,0.582462]
[1726605579359,0.41568372,60089.0,60088.0,1.182462]
[1726605580076,0.41568372,60089.0,60088.0,0.582462]
[1726605581264,0.47939615,60089.0,60088.0,0.582462]
[1726605581566,0.41568372,60089.0,60088.0,0.582462]
[1726605581964,0.05488372,60089.0,60088.0,1.543262]
[1726605582580,0.44,60098.0,60097.0,0.083169]
[1726605582873,0.62210379,60098.0,60097.0,0.083169]
[1726605583280,0.70542806,60098.0,60097.0,0.083169]
[1726605584678,0.62226006,60098.0,60097.0,0.083169]
[1726605585080,0.05512575,60098.0,60097.0,0.083169]
[1726605586181,0.11911366,60098.0,60097.0,0.083169]
[1726605586381,0.19197722,60098.0,60097.0,0.083169]
[1726605588072,0.08617705,60101.0,60100.0,0.083165]
[1726605588272,0.27627621,60101.0,60100.0,0.083165]
[1726605588472,0.33940694,60101.0,60100.0,0.083165]
[1726605588872,0.083169,60097.0,60096.0,0.00249563]
[1726605589079,0.6140596,60097.0,60096.0,0.083171]
[1726605589277,0.06313073,60094.0,60086.0,0.08312047]
[1726605589583,0.18209305,60088.0,60087.0,0.166366]
[1726605589779,0.30003638,60088.0,60087.0,0.166366]
[1726605589976,0.35567155,60088.0,60087.0,2.765646]
[1726605590173,0.22011962,60088.0,60087.0,2.082463]
[1726605590477,0.22011962,60088.0,60087.0,2.682463]
[1726605590679,0.35567155,60088.0,60087.0,2.165646]
[1726605590881,0.35567155,60088.0,60087.0,1.583183]
[1726605591080,0.19012887,60088.0,60087.0,0.083183]
[1726605593780,0.19012887,60088.0,60087.0,0.582463]
[1726605594079,0.3608,60092.0,60091.0,0.083178]
[1726605594282,0.41524956,60092.0,60091.0,0.083178]
[1726605596274,0.41524956,60092.0,60088.0,0.083181]
[1726605596477,0.29,60089.0,60088.0,0.083181]
[1726605596680,0.34444956,60089.0,60088.0,0.083181]
[1726605597578,0.34452062,60089.0,60088.0,0.083181]
[1726605598173,0.42770062,60089.0,60088.0,0.083181]
[1726605600282,0.05452062,60089.0,60088.0,0.083181]
[1726605600485,0.05452062,60089.0,60088.0,1.182461]
[1726605600887,0.3608,60092.0,60091.0,0.083178]
[1726605601087,0.47885175,60092.0,60091.0,0.083178]
[1726605601679,0.47885175,60092.0,60091.0,0.166356]
[1726605601888,0.55107037,60092.0,60091.0,0.166356]
[1726605602073,0.55107037,60092.0,60091.0,0.083178]
[1726605602387,0.70052955,60092.0,60091.0,0.083178]
[1726605602890,0.70052955,60092.0,60091.0,0.665596]
[1726605603582,0.55107037,60092.0,60091.0,0.665596]
[1726605603977,0.55107037,60092.0,60091.0,0.67292796]
[1726605604290,0.55107037,60092.0,60091.0,0.58974996]
[1726605604988,0.3608,60092.0,60091.0,0.09050996]
[1726605605586,0.48096473,60092.0,60091.0,0.17368796]
[1726605606185,0.12016473,60092.0,60091.0,1.71690596]
[1726605606382,0.19367958,60092.0,60091.0,1.71690596]
[1726605606785,0.19367958,60092.0,60091.0,3.21690596]
[1726605607190,0.16549874,60095.0,60091.0,3.21690596]
[1726605607191,0.12016473,60102.0,60101.0,0.083164]
[1726605607393,0.18329546,60102.0,60101.0,0.083164]
[1726605608100,0.12769059,60102.0,60101.0,0.083164]
[1726605608594,0.06313073,60102.0,60101.0,0.083164]
[1726605609184,0.58910354,60110.0,60102.0,0.083162]
[1726605609393,0.29,60105.0,60102.0,0.083162]
[1726605609592,0.42393073,60103.0,60102.0,0.083162]
[1726605612790,0.14955154,60110.0,60108.0,0.083154]
[1726605613291,0.54526627,60109.0,60108.0,0.083154]
[1726605614496,0.41694665,60109.0,60108.0,0.083154]
[1726605614695,0.48007738,60109.0,60108.0,0.083154]
[1726605615096,0.48007738,60109.0,60108.0,1.583154]
[1726605616698,0.42393073,60109.0,60108.0,1.583154]
[1726605617603,0.083161,60103.0,60102.0,0.0070461]
[1726605617810,0.43629173,60103.0,60097.0,0.00249547]
[1726605618006,0.79709873,60098.0,60097.0,0.00249547]
[1726605618196,0.79709873,60098.0,60097.0,0.00085869]
[1726605618197,0.99130491,60098.0,60097.0,0.00085869]
[1726605618507,1.15680365,60098.0,60097.0,0.00029706]
[1726605618703,1.15680365,60098.0,60081.0,0.3608]
[1726605618705,1.65722817,60098.0,60081.0,0.3608]
[1726605619008,0.43631673,60085.0,60077.0,0.3608]
[1726605619198,0.55685988,60085.0,60077.0,0.3608]
[1726605620295,0.47367388,60085.0,60077.0,0.3608]
[1726605620804,0.47367388,60085.0,60081.0,0.083191]
[1726605621705,0.47222449,60085.0,60081.0,0.083191]
[1726605621912,0.47222449,60085.0,60081.0,0.09026707]
[1726605622609,0.47222449,60085.0,60084.0,0.08568343]
[1726605624012,0.18222449,60085.0,60084.0,0.08568343]
[1726605624808,0.11909376,60085.0,60084.0,0.08568343]
[1726605625005,0.1892459,60085.0,60084.0,0.08568343]
[1726605625211,0.11909376,60085.0,60084.0,0.08568343]
[1726605626402,0.3608,60086.0,60085.0,0.083186]
[1726605626714,0.54300588,60086.0,60085.0,0.083186]
[1726605627304,0.47903141,60086.0,60085.0,0.083186]
[1726605627500,0.47903141,60086.0,60085.0,1.583186]
[1726605628905,0.54302738,60086.0,60085.0,1.583186]
[1726605629311,0.47903141,60086.0,60085.0,1.583186]
[1726605629501,0.11823141,60086.0,60085.0,1.583186]
[1726605630613,0.05510068,60086.0,60085.0,1.583186]
[1726605631107,0.00730766,60089.0,60088.0,0.083182]
[1726605631308,0.05518697,60090.0,60085.0,1.5]
[1726605631513,0.05518697,60089.0,60088.0,0.083182]
[1726605632112,0.05512145,60089.0,60088.0,0.083182]
[1726605633607,0.05512145,60089.0,60086.0,0.083184]
[1726605633812,0.05512145,60088.0,60087.0,0.083183]
[1726605634012,0.11838352,60090.0,60089.0,0.08318]
[1726605634405,0.05525279,60090.0,60089.0,0.16636]
[1726605635304,0.05525279,60090.0,60089.0,0.6656]
[1726605636115,0.3608,60091.0,60090.0,0.166358]
[1726605636316,0.4157188,60091.0,60090.0,0.166358]
[1726605636812,0.0073341,60100.0,60090.0,0.083179]
[1726605637115,0.0073341,60100.0,60094.0,0.083173]
[1726605637116,0.06313073,60095.0,60094.0,0.083173]
[1726605637301,0.11825784,60095.0,60094.0,0.083173]
[1726605639117,0.36430942,60095.0,60094.0,0.083173]
[1726605639302,0.43719012,60095.0,60090.0,0.05848481]
[1726605639616,0.43719012,60095.0,60093.0,0.083175]
[1726605639617,0.19201077,60094.0,60093.0,0.083175]
[1726605641103,0.2551415,60094.0,60088.0,0.0072557]
[1726605641316,0.06313073,60087.0,60085.0,0.00088]
[1726605641518,0.2551415,60086.0,60084.0,0.00249643]
[1726605641819,0.3178415,60085.0,60084.0,0.00249643]
[1726605642308,0.4010275,60085.0,60084.0,0.00249643]
[1726605645618,0.06313073,60083.0,60077.0,0.00716198]
[1726605645913,0.33789677,60085.0,60074.0,0.00249583]
[1726605645914,0.43632673,60078.0,60074.0,0.00249583]
[1726605646115,0.06313073,60075.0,60074.0,0.00249583]
[1726605646321,0.14633073,60075.0,60074.0,0.00249583]
[1726605646515,0.14633073,60075.0,60060.0,0.3608]
[1726605646516,0.083207,60070.0,60056.0,0.083226]
[1726605646719,0.6508,60067.0,60066.0,0.083212]
[1726605646917,0.70376406,60067.0,60066.0,0.083212]
[1726605647112,0.76689479,60067.0,60066.0,0.083212]
[1726605647314,0.85010579,60067.0,60066.0,0.083212]
[1726605647523,0.76689479,60067.0,60066.0,0.083212]
[1726605647719,0.083212,60066.0,60054.0,0.00712786]
[1726605648020,0.6508,60055.0,60053.0,0.00084]
[1726605648230,0.05169102,60054.0,60052.0,0.00249738]
[1726605648413,0.65192001,60055.0,60052.0,0.08572838]
[1726605648720,0.65192001,60055.0,60053.0,0.08323]
[1726605648721,0.3608,60055.0,60053.0,0.08323]
[1726605649125,0.3608,60055.0,60052.0,0.00249738]
[1726605649323,0.19,60053.0,60052.0,0.00249738]
[1726605651020,0.27323,60053.0,60052.0,0.00249738]
[1726605651426,0.19,60053.0,60040.0,0.3608]
[1726605651628,0.19,60041.0,60040.0,0.36800535]
[1726605651925,0.29,60041.0,60040.0,0.3608]
[1726605652121,1.38968,60041.0,60018.0,0.00249902]
[1726605652322,0.29,60022.0,60018.0,0.00249902]
[1726605652626,0.3608,60025.0,60022.0,0.083273]
[1726605652818,0.3608,60025.0,60018.0,0.00249902]
[1726605653018,0.3608,60025.0,60023.0,0.083271]
[1726605653427,0.3608,60025.0,60019.0,0.083277]
[1726605653626,0.3608,60025.0,60018.0,0.00249902]
[1726605653627,0.29,60022.0,60018.0,0.00249902]
[1726605653922,0.3608,60024.0,60018.0,0.00249902]
[1726605654122,0.3608,60024.0,60020.0,0.083275]
[1726605654323,0.3608,60019.0,60018.0,0.00249902]
[1726605656631,0.3608,60019.0,60018.0,0.08577802]
[1726605659229,0.3608,60038.0,60018.0,1.10233902]
[1726605659420,0.3608,60043.0,60042.0,0.083245]
[1726605659824,0.3608,60043.0,60042.0,1.5]
[1726605659825,0.444044,60043.0,60042.0,1.5]
[1726605660024,0.3608,60043.0,60042.0,1.583245]
[1726605661630,0.3608,60043.0,60042.0,1.5]
[1726605662139,0.734044,60043.0,60042.0,1.5]
[1726605662927,0.083256,60034.0,60033.0,0.00249808]
[1726605663235,0.734056,60034.0,60033.0,0.00249808]
[1726605663430,1.917032,60034.0,60033.0,0.00249808]
[1726605663632,1.917032,60034.0,60018.0,0.00249902]
[1726605663633,2.00169054,60034.0,60018.0,0.00249902]
[1726605663833,0.3608,60019.0,60016.0,0.083281]
[1726605664136,0.3608,60019.0,60012.0,0.29]
[1726605664639,0.3608,60019.0,60018.0,0.083279]
[1726605667139,0.3608,60019.0,60014.0,0.00249916]
[1726605667335,0.29,60016.0,60014.0,0.00249916]
[1726605667641,0.373281,60016.0,60014.0,0.00249916]
[1726605668336,0.29,60016.0,60014.0,0.08578316]
[1726605668531,0.29,60016.0,60015.0,0.083323]
[1726605668951,0.6508,60016.0,60015.0,0.083323]
[1726605669545,0.3608,60016.0,60015.0,0.083323]
[1726605670431,0.083262,60030.0,60015.0,0.083323]
[1726605670432,0.3608,60058.0,60022.0,0.3608]
[1726605670735,0.3608,60058.0,60015.0,1.54084]
[1726605670736,0.00116,60062.0,60061.0,0.083219]
[1726605670937,0.3608,60083.0,60061.0,0.6]
[1726605671132,0.3608,60083.0,60071.0,0.3608]
[1726605671338,0.3608,60083.0,60076.0,0.083198]
[1726605671726,0.00716544,60088.0,60076.0,0.083198]
[1726605671937,0.3608,60084.0,60076.0,0.083198]
[1726605672639,0.3608,60084.0,60072.0,1.5]
[1726605672834,0.3608,60084.0,60078.0,0.083195]
[1726605673230,0.3608,60084.0,60072.0,1.5]
[1726605673644,0.0024969,60089.0,60076.0,0.3608]
[1726605673936,0.24944878,60088.0,60076.0,0.3608]
[1726605674140,0.6508,60086.0,60072.0,1.5]
[1726605674341,0.24944878,60088.0,60077.0,0.3608]
[1726605674539,0.3608,60086.0,60084.0,0.083186]
[1726605675639,0.0024969,60089.0,60080.0,0.00249663]
[1726605675944,0.0024969,60089.0,60087.0,0.083182]
[1726605676452,0.3608,60102.0,60087.0,0.083183]
[1726605676453,0.3614256,60088.0,60087.0,0.083183]
[1726605676748,0.18038122,60088.0,60087.0,0.083183]
[1726605676944,0.18038122,60088.0,60087.0,1.583183]
[1726605679243,0.11187919,60088.0,60087.0,1.583183]
[1726605679739,0.11187919,60088.0,60087.0,1.873183]
[1726605680144,0.3608,60092.0,60090.0,0.083179]
[1726605680444,0.16815589,60091.0,60090.0,0.0355139]
[1726605680638,0.33259687,60091.0,60090.0,0.0355139]
[1726605681355,0.16815589,60091.0,60090.0,0.0355139]
[1726605682135,0.10432905,60091.0,60090.0,0.0355139]
[1726605682732,0.50833476,60092.0,60090.0,0.0355139]
[1726605682944,0.16778822,60091.0,60090.0,0.0355139]
[1726605683133,0.10432905,60091.0,60090.0,0.0355139]
[1726605683736,0.10432905,60091.0,60084.0,1.5]
[1726605683965,0.10432905,60091.0,59993.0,0.06629596]
[1726605683966,0.6508,60085.0,60071.0,0.3608]
[1726605684141,0.083189,60083.0,60071.0,0.3608]
[1726605684338,1.01244,60085.0,60071.0,0.3608]
[1726605684537,0.7216,60085.0,60083.0,0.083188]
[1726605686251,0.3608,60085.0,60078.0,0.29]
[1726605686440,0.3608,60085.0,60075.0,0.29]
[1726605687950,0.3608,60085.0,60084.0,0.083187]
[1726605688243,0.3608,60085.0,60084.0,0.03701753]
[1726605688433,0.3608,60085.0,60080.0,0.00249625]
[1726605688640,0.29,60081.0,60080.0,0.00249625]
[1726605689040,1.472511,60081.0,60080.0,0.00249625]
[1726605689241,0.373191,60081.0,60080.0,0.00249625]
[1726605690855,0.38043414,60081.0,60080.0,0.00249625]
[1726605691046,0.4552,60085.0,60080.0,0.00249625]
[1726605691243,0.538386,60085.0,60081.0,0.083191]
[1726605691441,0.04602278,60084.0,60083.0,0.083189]
[1726605692250,0.04602278,60084.0,60080.0,0.00249625]
[1726605692454,0.04602278,60083.0,60080.0,0.08568825]
[1726605692754,0.3608,60085.0,60080.0,0.08568825]
[1726605693052,0.04603479,60084.0,60081.0,0.083191]
[1726605693252,0.04605088,60083.0,60081.0,0.083191]
[1726605693551,0.3608,60085.0,60082.0,0.08319]
[1726605693743,0.04606256,60084.0,60082.0,0.08319]
[1726605693944,0.04606261,60083.0,60082.0,0.08319]
[1726605696453,0.09976387,60084.0,60080.0,0.00249625]
[1726605696650,0.04606261,60083.0,60082.0,0.08319]
[1726605696947,0.3608,60085.0,60084.0,0.083187]
[1726605697153,0.41472835,60085.0,60084.0,0.456374]
[1726605697345,0.00249617,60096.0,60093.0,0.083175]
[1726605697346,0.14736049,60094.0,60093.0,0.083175]
[1726605697546,0.0521836,60094.0,60091.0,0.29]
[1726605697746,0.0521836,60093.0,60092.0,0.083176]
[1726605697942,0.3608,60095.0,60092.0,1.5]
[1726605698145,0.3608,60095.0,60093.0,0.083175]
[1726605698146,0.05254935,60094.0,60093.0,0.083175]
[1726605699044,0.11241049,60094.0,60093.0,0.083175]
[1726605699447,0.3608,60095.0,60094.0,0.083173]
[1726605699654,0.41350896,60095.0,60094.0,0.083173]
[1726605699854,0.3608,60095.0,60094.0,0.083173]
[1726605700252,0.47396917,60095.0,60092.0,1.50082142]
[1726605700452,0.26247647,60094.0,60092.0,1.49994142]
[1726605700647,0.11316917,60093.0,60092.0,1.58311742]
[1726605701752,0.05291473,60093.0,60092.0,1.58311742]
[1726605702256,0.4393073,60093.0,60084.0,0.3608]
[1726605702453,0.26158494,60092.0,60084.0,0.3608]
[1726605702657,0.11227764,60091.0,60084.0,0.3608]
[1726605702856,0.05291473,60090.0,60089.0,0.083179]
[1726605703455,0.05208689,60090.0,60089.0,0.083179]
[1726605705056,0.05208689,60090.0,60089.0,1.182419]
[1726605705245,0.00084,60097.0,60096.0,0.166342]
[1726605705446,0.00092,60102.0,60096.0,0.527142]
[1726605705649,0.00092,60102.0,60101.0,0.443964]
[1726605705951,0.1493073,60112.0,60111.0,0.08315]
[1726605706153,0.18177625,60120.0,60111.0,0.08315]
[1726605706154,0.1493073,60115.0,60113.0,0.083147]
[1726605706351,0.1493073,60118.0,60113.0,0.083147]
[1726605706854,0.40612087,60114.0,60111.0,1.5]
[1726605707048,0.04532087,60113.0,60111.0,1.5]
[1726605707246,0.04532087,60112.0,60104.0,0.00249479]
[1726605707556,0.29,60113.0,60104.0,0.00249479]
[1726605707557,0.04532087,60111.0,60104.0,0.00249479]
[1726605707856,0.443953,60109.0,60104.0,0.00249479]
[1726605708157,0.29,60107.0,60104.0,0.00249479]
[1726605708354,0.04532087,60106.0,60104.0,0.00249479]
[1726605708653,0.29,60107.0,60104.0,0.00249479]
[1726605708654,0.04532087,60105.0,60104.0,0.00249479]
[1726605709153,0.04532087,60105.0,60104.0,0.08565479]
[1726605709360,0.04532087,60105.0,60104.0,0.08316]
[1726605714363,0.04532087,60105.0,60095.0,0.2507922]
[1726605714364,0.15622605,60105.0,60095.0,0.2507922]
[1726605714554,0.15622605,60104.0,60103.0,0.083161]
[1726605716356,0.33826122,60104.0,60103.0,0.083161]
[1726605716754,0.15622605,60104.0,60103.0,0.083161]
[1726605717263,0.3608,60109.0,60108.0,0.083154]
[1726605717458,0.51240933,60109.0,60108.0,0.083154]
[1726605718258,0.51240933,60109.0,60086.0,0.3608]
[1726605718259,0.083167,60099.0,60086.0,0.3608]
[1726605718564,0.58047034,60098.0,60091.0,0.083176]
[1726605718751,0.083172,60095.0,60086.0,0.3608]
[1726605719059,0.21967034,60094.0,60093.0,0.083175]
[1726605721049,0.21256589,60094.0,60093.0,0.083175]
[1726605721463,0.04148695,60094.0,60093.0,0.443975]
[1726605721874,0.04148695,60094.0,60093.0,2.02715]
[1726605722753,0.04148695,60094.0,60093.0,1.943975]
[1726605724274,0.04148695,60094.0,60093.0,3.05027934]
[1726605725250,0.04845874,60094.0,60093.0,2.96710434]
[1726605725453,0.14907457,60102.0,60101.0,0.083164]
[1726605725763,0.29467288,60102.0,60101.0,0.083164]
[1726605726166,0.14563762,60102.0,60101.0,0.083164]
[1726605726457,0.29471219,60102.0,60101.0,0.04234917]
[1726605727060,0.14563762,60102.0,60101.0,0.04234917]
[1726605727264,0.29471219,60102.0,60101.0,0.04234917]
[1726605727464,0.14563762,60102.0,60101.0,0.04234917]
[1726605728256,0.31159893,60102.0,60101.0,0.04234917]
[1726605728564,0.31159893,60102.0,60101.0,0.04958637]
[1726605729058,0.29500168,60102.0,60101.0,0.63191037]
[1726605729259,0.09033364,60102.0,60101.0,0.63191037]
[1726605729457,0.21108263,60102.0,60101.0,0.39886827]
[1726605729658,0.21108263,60102.0,60101.0,0.99886827]
[1726605729858,0.21108263,60102.0,60101.0,1.08203227]
[1726605730055,0.21112119,60102.0,60101.0,1.08915803]
[1726605730362,0.14569267,60102.0,60101.0,1.08915803]
[1726605730753,0.14569267,60102.0,60101.0,1.00599403]
[1726605731967,0.14569267,60102.0,60101.0,1.08915803]
[1726605732853,0.14569267,60102.0,60101.0,0.40599403]
[1726605733956,0.14569267,60102.0,60101.0,1.08915803]
[1726605734361,0.21112119,60102.0,60101.0,1.08915803]
[1726605734751,0.20119764,60102.0,60101.0,1.08915803]
[1726605736667,0.13576912,60102.0,60101.0,1.08915803]
[1726605737366,0.28523504,60102.0,60101.0,1.17232203]
[1726605737563,0.18844486,60102.0,60101.0,1.17232203]
[1726605737769,0.28523649,60102.0,60101.0,1.17232203]
[1726605738065,0.03897894,60102.0,60101.0,1.08915803]
[1726605738261,0.18267579,60111.0,60101.0,1.08915803]
[1726605738262,0.18267579,60110.0,60102.0,0.49912]
[1726605738463,6e-08,60109.0,60108.0,0.249462]
[1726605738663,0.18345573,60122.0,60121.0,0.083136]
[1726605738858,0.05103026,60122.0,60121.0,1.873136]
[1726605739368,0.05103026,60122.0,60121.0,2.233936]
[1726605740470,0.3608,60128.0,60127.0,0.083128]
[1726605740660,0.41182892,60128.0,60127.0,0.083128]
[1726605740862,0.59528465,60128.0,60127.0,0.083128]
[1726605741165,0.54425573,60128.0,60127.0,0.083128]
[1726605741566,0.54425573,60128.0,60121.0,1.5]
[1726605741771,0.54425573,60128.0,60124.0,0.083132]
[1726605741772,0.18345573,60125.0,60124.0,0.083132]
[1726605742962,0.18345573,60125.0,60121.0,1.50144]
[1726605742963,0.083135,60122.0,60121.0,0.00144]
[1726605743163,0.083135,60122.0,60117.0,0.08314]
[1726605743164,0.524488,60122.0,60117.0,0.08314]
[1726605743467,0.18345573,60118.0,60117.0,0.08314]
[1726605744472,0.18345573,60117.0,60115.0,0.00249458]
[1726605744667,0.23449002,60116.0,60115.0,0.0929423]
[1726605745179,0.31763302,60116.0,60115.0,0.0097983]
[1726605745758,0.23449002,60116.0,60115.0,0.0097983]
[1726605745962,0.23449002,60116.0,60115.0,0.0929423]
[1726605746360,0.31763302,60116.0,60115.0,0.0929423]
[1726605746568,0.27520927,60116.0,60115.0,0.4537423]
[1726605746762,0.27520927,60116.0,60115.0,1.0359263]
[1726605746763,0.09175354,60116.0,60115.0,1.0359263]
[1726605746970,0.09175354,60116.0,60115.0,0.4537423]
[1726605748268,0.12386775,60116.0,60115.0,0.4537423]